[Event "Late-Titled-Tuesday-Blitz-May-07-2024"]
[Site "Chess.com"]
[Date "2024.05.07"]
[Round "9"]
[White "Arteler"]
[Black "VictorFcQNK"]
[Result "0-1"]
[WhiteElo "2245"]
[BlackElo "2102"]
[TimeControl "180+1"]
[EndTime "15:48:11 PDT"]
[Termination "VictorFcQNK won on time"]

1. d4 {[%clk 0:03:00.9]} 1... Nf6 {[%clk 0:02:58.9]} 2. Bg5 {[%clk 0:03:01.3]}
2... d5 {[%clk 0:02:57.1]} 3. c4 {[%clk 0:03:01.1]} 3... e6 {[%clk 0:02:53.7]}
4. Nc3 {[%clk 0:03:00.4]} 4... Be7 {[%clk 0:02:51.8]} 5. e3 {[%clk 0:02:59.2]}
5... O-O {[%clk 0:02:49.4]} 6. Nf3 {[%clk 0:02:58.5]} 6... c6 {[%clk 0:02:32.5]}
7. cxd5 {[%clk 0:02:58.2]} 7... cxd5 {[%clk 0:02:31.9]} 8. Bd3 {[%clk
0:02:57.9]} 8... Nc6 {[%clk 0:02:29.5]} 9. a3 {[%clk 0:02:57.7]} 9... h6 {[%clk
0:02:09.3]} 10. Bh4 {[%clk 0:02:57.1]} 10... Bd7 {[%clk 0:02:04.4]} 11. Rc1
{[%clk 0:02:56]} 11... Rc8 {[%clk 0:02:01]} 12. h3 {[%clk 0:02:55.7]} 12... Na5
{[%clk 0:01:55.8]} 13. O-O {[%clk 0:02:47.2]} 13... Ne8 {[%clk 0:01:53.6]} 14.
Bxe7 {[%clk 0:02:44.9]} 14... Qxe7 {[%clk 0:01:53.4]} 15. b4 {[%clk 0:02:42.2]}
15... Nc4 {[%clk 0:01:49.9]} 16. Bxc4 {[%clk 0:02:39.4]} 16... Rxc4 {[%clk
0:01:47]} 17. Ne5 {[%clk 0:02:36.4]} 17... Rc7 {[%clk 0:01:42.3]} 18. Nxd7
{[%clk 0:02:26.7]} 18... Qxd7 {[%clk 0:01:39.5]} 19. Qb3 {[%clk 0:02:24.8]}
19... Nd6 {[%clk 0:01:35]} 20. Rc2 {[%clk 0:02:23.5]} 20... Rc4 {[%clk
0:01:31.6]} 21. Rfc1 {[%clk 0:02:22.9]} 21... Rfc8 {[%clk 0:01:27.4]} 22. Na4
{[%clk 0:02:07]} 22... Qc6 {[%clk 0:01:17.2]} 23. Rxc4 {[%clk 0:01:50.5]} 23...
dxc4 {[%clk 0:01:16.4]} 24. Qc2 {[%clk 0:01:46.6]} 24... Qa6 {[%clk 0:01:11.7]}
25. Ra1 {[%clk 0:01:02.4]} 25... Qc6 {[%clk 0:01:04]} 26. Nb2 {[%clk 0:00:57.1]}
26... b5 {[%clk 0:00:57.8]} 27. Nd1 {[%clk 0:00:49.5]} 27... Ne4 {[%clk
0:00:53.8]} 28. Nc3 {[%clk 0:00:47.3]} 28... Nxc3 {[%clk 0:00:49.4]} 29. Qxc3
{[%clk 0:00:48.2]} 29... Rd8 {[%clk 0:00:43]} 30. Qc2 {[%clk 0:00:44]} 30... a6
{[%clk 0:00:39.3]} 31. a4 {[%clk 0:00:43.8]} 31... c3 {[%clk 0:00:33.1]} 32.
axb5 {[%clk 0:00:35.6]} 32... axb5 {[%clk 0:00:33.9]} 33. Rc1 {[%clk 0:00:35]}
33... Rc8 {[%clk 0:00:29.4]} 34. Qb3 {[%clk 0:00:31.8]} 34... Kf8 {[%clk
0:00:26.2]} 35. Qc2 {[%clk 0:00:29.3]} 35... Ke7 {[%clk 0:00:25.8]} 36. Qh7
{[%clk 0:00:28.7]} 36... Kf6 {[%clk 0:00:24.1]} 37. e4 {[%clk 0:00:28]} 37... c2
{[%clk 0:00:19.9]} 38. e5+ {[%clk 0:00:27.8]} 38... Ke7 {[%clk 0:00:19.7]} 39.
Qxg7 {[%clk 0:00:25.4]} 39... Qc3 {[%clk 0:00:18.6]} 40. Qf6+ {[%clk 0:00:24.5]}
40... Ke8 {[%clk 0:00:19]} 41. Qh8+ {[%clk 0:00:11.2]} 41... Kd7 {[%clk
0:00:18.7]} 42. Qxh6 {[%clk 0:00:11.3]} 42... Qxb4 {[%clk 0:00:16.4]} 43. Qf6
{[%clk 0:00:10]} 43... Qe7 {[%clk 0:00:15.8]} 44. Qxe7+ {[%clk 0:00:09.5]} 44...
Kxe7 {[%clk 0:00:15.5]} 45. Kf1 {[%clk 0:00:09.5]} 45... b4 {[%clk 0:00:16]} 46.
Ke2 {[%clk 0:00:09.8]} 46... b3 {[%clk 0:00:16.5]} 47. Kd2 {[%clk 0:00:07.8]}
47... b2 {[%clk 0:00:16.4]} 48. Rxc2 {[%clk 0:00:07.2]} 48... b1=Q {[%clk
0:00:15.3]} 49. Rxc8 {[%clk 0:00:07]} 49... Qb4+ {[%clk 0:00:13.6]} 50. Ke3
{[%clk 0:00:06.7]} 50... Qa3+ {[%clk 0:00:12.1]} 51. Ke4 {[%clk 0:00:05.8]}
51... Qa1 {[%clk 0:00:10.2]} 52. Rc7+ {[%clk 0:00:05.5]} 52... Ke8 {[%clk
0:00:10.3]} 53. Rc8+ {[%clk 0:00:04.9]} 53... Kd7 {[%clk 0:00:10.1]} 54. Rc4
{[%clk 0:00:02.8]} 54... Qe1+ {[%clk 0:00:09.4]} 55. Kd3 {[%clk 0:00:02.3]}
55... Qf1+ {[%clk 0:00:09.5]} 56. Kc3 {[%clk 0:00:02.3]} 56... Qxf2 {[%clk
0:00:09]} 57. Kb4 {[%clk 0:00:02.3]} 57... Qb2+ {[%clk 0:00:08.4]} 58. Kc5
{[%clk 0:00:02.3]} 58... Qa3+ {[%clk 0:00:08.4]} 59. Kb6 {[%clk 0:00:01.5]}
59... Qb2+ {[%clk 0:00:07.9]} 60. Kc5 {[%clk 0:00:01.8]} 60... Qxg2 {[%clk
0:00:07.8]} 61. Kb6 {[%clk 0:00:01.8]} 61... Qb2+ {[%clk 0:00:07.1]} 62. Kc5
{[%clk 0:00:01.9]} 62... Qg2 {[%clk 0:00:06.4]} 63. Kb6 {[%clk 0:00:01.3]} 63...
Qb2+ {[%clk 0:00:06.3]} 64. Kc5 {[%clk 0:00:01.6]} 64... Qa3+ {[%clk 0:00:05.7]}
65. Kb6 {[%clk 0:00:01.9]} 65... Qb3+ {[%clk 0:00:05.1]} 66. Kc5 {[%clk
0:00:02.3]} 66... Qa3+ {[%clk 0:00:03.6]} 67. Kb6 {[%clk 0:00:01.3]} 67... Qa8
{[%clk 0:00:03]} 68. Kc5 {[%clk 0:00:01.6]} 68... Qb8 {[%clk 0:00:02.4]} 69. Rb4
{[%clk 0:00:00.7]} 69... Qc7+ {[%clk 0:00:02.2]} 0-1

[Event "Late-Titled-Tuesday-Blitz-May-07-2024"]
[Site "Chess.com"]
[Date "2024.05.07"]
[Round "9"]
[White "ab-lsv"]
[Black "dealshark"]
[Result "0-1"]
[WhiteElo "2370"]
[BlackElo "2528"]
[TimeControl "180+1"]
[EndTime "15:48:21 PDT"]
[Termination "dealshark won on time"]

1. d4 {[%clk 0:02:59.6]} 1... d5 {[%clk 0:03:00]} 2. c4 {[%clk 0:02:59.4]} 2...
e6 {[%clk 0:03:00.7]} 3. Nc3 {[%clk 0:02:59.5]} 3... c5 {[%clk 0:03:01.2]} 4.
cxd5 {[%clk 0:02:59.6]} 4... exd5 {[%clk 0:03:01.7]} 5. Nf3 {[%clk 0:02:59.9]}
5... Nc6 {[%clk 0:03:01]} 6. dxc5 {[%clk 0:02:59.2]} 6... d4 {[%clk 0:03:00.7]}
7. Na4 {[%clk 0:02:59.3]} 7... Bxc5 {[%clk 0:03:00.8]} 8. Nxc5 {[%clk
0:02:59.5]} 8... Qa5+ {[%clk 0:03:01.5]} 9. Bd2 {[%clk 0:02:59.2]} 9... Qxc5
{[%clk 0:03:02.2]} 10. Rc1 {[%clk 0:02:58.5]} 10... Qb6 {[%clk 0:03:01.9]} 11.
e3 {[%clk 0:02:58.8]} 11... Nf6 {[%clk 0:02:55.1]} 12. Bc4 {[%clk 0:02:57.6]}
12... dxe3 {[%clk 0:02:53.4]} 13. Bxe3 {[%clk 0:02:57.7]} 13... Qb4+ {[%clk
0:02:53.2]} 14. Bd2 {[%clk 0:02:56]} 14... Qe7+ {[%clk 0:02:53.9]} 15. Be2
{[%clk 0:02:55.4]} 15... O-O {[%clk 0:02:53.1]} 16. O-O {[%clk 0:02:55.7]} 16...
Bg4 {[%clk 0:02:52.2]} 17. Re1 {[%clk 0:02:56]} 17... Rfe8 {[%clk 0:02:51.5]}
18. h3 {[%clk 0:02:52.7]} 18... Bh5 {[%clk 0:02:48.8]} 19. Qa4 {[%clk
0:02:37.7]} 19... Qe4 {[%clk 0:02:29]} 20. Bb5 {[%clk 0:02:18.1]} 20... Qxa4
{[%clk 0:02:27.4]} 21. Bxa4 {[%clk 0:02:19]} 21... Bxf3 {[%clk 0:02:22.4]} 22.
gxf3 {[%clk 0:02:19.5]} 22... Rxe1+ {[%clk 0:02:21.1]} 23. Rxe1 {[%clk
0:02:19.6]} 23... Rd8 {[%clk 0:02:17.4]} 24. Be3 {[%clk 0:02:09.6]} 24... a6
{[%clk 0:02:08.1]} 25. Rc1 {[%clk 0:01:54.9]} 25... Rd6 {[%clk 0:01:53.1]} 26.
Kg2 {[%clk 0:01:48.3]} 26... Nd5 {[%clk 0:01:47.4]} 27. Bc5 {[%clk 0:01:31.9]}
27... Rg6+ {[%clk 0:01:43.5]} 28. Kf1 {[%clk 0:01:32]} 28... Re6 {[%clk
0:01:01.7]} 29. Bb3 {[%clk 0:01:27.6]} 29... Re5 {[%clk 0:00:53.6]} 30. Rd1
{[%clk 0:01:21.6]} 30... Nf6 {[%clk 0:00:40.3]} 31. Bd6 {[%clk 0:01:11.8]} 31...
Re8 {[%clk 0:00:37.7]} 32. Ba4 {[%clk 0:01:02.2]} 32... b5 {[%clk 0:00:35]} 33.
Bb3 {[%clk 0:01:00.9]} 33... Na5 {[%clk 0:00:34.9]} 34. Bb4 {[%clk 0:00:20.3]}
34... Nc6 {[%clk 0:00:25.1]} 35. Bc5 {[%clk 0:00:18.2]} 35... Na5 {[%clk
0:00:25.2]} 36. Bb4 {[%clk 0:00:18.2]} 36... Nxb3 {[%clk 0:00:18.7]} 37. axb3
{[%clk 0:00:19.1]} 37... h6 {[%clk 0:00:16.7]} 38. Bc3 {[%clk 0:00:17]} 38...
Re6 {[%clk 0:00:16.1]} 39. Rd8+ {[%clk 0:00:15.6]} 39... Kh7 {[%clk 0:00:16.6]}
40. Rf8 {[%clk 0:00:15.3]} 40... Kg6 {[%clk 0:00:16.8]} 41. Kg2 {[%clk
0:00:12.9]} 41... Nd5 {[%clk 0:00:16]} 42. Rc8 {[%clk 0:00:09]} 42... Nf4+
{[%clk 0:00:14.7]} 43. Kg3 {[%clk 0:00:08.7]} 43... Ne2+ {[%clk 0:00:15.1]} 44.
Kg2 {[%clk 0:00:08.8]} 44... h5 {[%clk 0:00:15.2]} 45. Rc5 {[%clk 0:00:07.4]}
45... h4 {[%clk 0:00:14.4]} 46. Be5 {[%clk 0:00:05.8]} 46... f6 {[%clk
0:00:11.8]} 47. Bh2 {[%clk 0:00:05.6]} 47... Kf7 {[%clk 0:00:06.4]} 48. Rc7+
{[%clk 0:00:05.1]} 48... Kg6 {[%clk 0:00:06.6]} 49. b4 {[%clk 0:00:05.1]} 49...
Rb6 {[%clk 0:00:04.6]} 50. Ra7 {[%clk 0:00:04]} 50... Re6 {[%clk 0:00:04.5]} 51.
Rc7 {[%clk 0:00:03.8]} 51... Kf5 {[%clk 0:00:04.9]} 52. Rd7 {[%clk 0:00:03.9]}
52... Kg6 {[%clk 0:00:04.9]} 53. Rd5 {[%clk 0:00:04]} 53... Rc6 {[%clk
0:00:04.6]} 54. Rd7 {[%clk 0:00:03.8]} 54... Nc1 {[%clk 0:00:04.2]} 55. Rd2
{[%clk 0:00:03.3]} 55... Na2 {[%clk 0:00:04.3]} 56. Rd4 {[%clk 0:00:02.9]} 56...
Rc4 {[%clk 0:00:04.8]} 57. Rd6 {[%clk 0:00:02.4]} 57... Rxb4 {[%clk 0:00:05.1]}
58. Rxa6 {[%clk 0:00:02.5]} 58... Rxb2 {[%clk 0:00:05.8]} 59. Rb6 {[%clk
0:00:02.2]} 59... b4 {[%clk 0:00:06.2]} 60. Rb5 {[%clk 0:00:01.8]} 60... Nc3
{[%clk 0:00:06.5]} 61. Bf4 {[%clk 0:00:02]} 61... Ne2 {[%clk 0:00:06.2]} 62. Be3
{[%clk 0:00:01.9]} 62... b3 {[%clk 0:00:06.5]} 63. Rb4 {[%clk 0:00:01.9]} 63...
Nc1 {[%clk 0:00:06.1]} 64. Rxh4 {[%clk 0:00:01.7]} 64... Nd3 {[%clk 0:00:05.1]}
65. Rd4 {[%clk 0:00:01.5]} 65... Ne5 {[%clk 0:00:02.9]} 66. Rb4 {[%clk
0:00:01.7]} 66... Kf5 {[%clk 0:00:02.3]} 67. Bd4 {[%clk 0:00:01.9]} 67... Ke6
{[%clk 0:00:03.1]} 68. f4 {[%clk 0:00:01.7]} 68... Rc2 {[%clk 0:00:02.7]} 69.
fxe5 {[%clk 0:00:01.3]} 69... fxe5 {[%clk 0:00:03.6]} 0-1

[Event "Late-Titled-Tuesday-Blitz-May-07-2024"]
[Site "Chess.com"]
[Date "2024.05.07"]
[Round "9"]
[White "ReadySkate"]
[Black "manmanlai1"]
[Result "1-0"]
[WhiteElo "2716"]
[BlackElo "2581"]
[TimeControl "180+1"]
[EndTime "15:48:23 PDT"]
[Termination "ReadySkate won by checkmate"]

1. d4 {[%clk 0:03:00.1]} 1... Nf6 {[%clk 0:02:24.5]} 2. c4 {[%clk 0:03:00]} 2...
c5 {[%clk 0:02:24.3]} 3. d5 {[%clk 0:03:00]} 3... e6 {[%clk 0:02:25]} 4. Nc3
{[%clk 0:03:00.1]} 4... exd5 {[%clk 0:02:25.1]} 5. cxd5 {[%clk 0:03:01]} 5... d6
{[%clk 0:02:24.9]} 6. e4 {[%clk 0:03:01.6]} 6... g6 {[%clk 0:02:25.4]} 7. f4
{[%clk 0:03:02.1]} 7... Bg7 {[%clk 0:02:25.1]} 8. Bb5+ {[%clk 0:03:02.8]} 8...
Nfd7 {[%clk 0:02:24.6]} 9. Nf3 {[%clk 0:03:02.8]} 9... O-O {[%clk 0:02:24.7]}
10. O-O {[%clk 0:03:03.4]} 10... a6 {[%clk 0:02:24.7]} 11. Bd3 {[%clk 0:03:04]}
11... b5 {[%clk 0:02:25.2]} 12. a3 {[%clk 0:03:04.7]} 12... Re8 {[%clk
0:02:22.5]} 13. Kh1 {[%clk 0:03:04.5]} 13... c4 {[%clk 0:02:16.2]} 14. Bc2
{[%clk 0:03:04.1]} 14... Nc5 {[%clk 0:02:15.5]} 15. f5 {[%clk 0:03:04.2]} 15...
Nbd7 {[%clk 0:02:13.5]} 16. Bg5 {[%clk 0:03:02.8]} 16... Qb6 {[%clk 0:02:10.2]}
17. Qd2 {[%clk 0:03:01.2]} 17... Ne5 {[%clk 0:02:05.8]} 18. Nxe5 {[%clk
0:02:59.9]} 18... Bxe5 {[%clk 0:02:05]} 19. Bf4 {[%clk 0:02:58.3]} 19... Bh8
{[%clk 0:02:01.2]} 20. Qf2 {[%clk 0:02:53.7]} 20... Ra7 {[%clk 0:01:59.6]} 21.
Qg3 {[%clk 0:02:49.5]} 21... Be5 {[%clk 0:01:56.7]} 22. Bxe5 {[%clk 0:02:45.4]}
22... Rxe5 {[%clk 0:01:57.6]} 23. Qh4 {[%clk 0:02:40]} 23... Qc7 {[%clk
0:01:51.2]} 24. Rf3 {[%clk 0:02:37.5]} 24... Qe7 {[%clk 0:01:46.3]} 25. Qh6
{[%clk 0:02:27.7]} 25... Qf8 {[%clk 0:01:43.9]} 26. Qf4 {[%clk 0:02:26.3]} 26...
Qe7 {[%clk 0:01:34.1]} 27. Raf1 {[%clk 0:02:23.8]} 27... g5 {[%clk 0:01:29.9]}
28. Qg3 {[%clk 0:02:18.2]} 28... f6 {[%clk 0:01:29.6]} 29. Re3 {[%clk
0:02:10.7]} 29... Bd7 {[%clk 0:01:28.9]} 30. Qf2 {[%clk 0:02:03.9]} 30... Ra8
{[%clk 0:01:28.3]} 31. Rfe1 {[%clk 0:01:55.7]} 31... a5 {[%clk 0:01:21.7]} 32.
Ne2 {[%clk 0:01:54.5]} 32... b4 {[%clk 0:01:20.7]} 33. Nd4 {[%clk 0:01:54.3]}
33... Re8 {[%clk 0:01:02.3]} 34. Ne6 {[%clk 0:01:51.8]} 34... Bxe6 {[%clk
0:01:01.4]} 35. fxe6 {[%clk 0:01:50.5]} 35... Kg7 {[%clk 0:01:01.6]} 36. Rf1
{[%clk 0:01:48.6]} 36... Rc8 {[%clk 0:00:51.5]} 37. Rf3 {[%clk 0:01:48.2]} 37...
Rf8 {[%clk 0:00:50.5]} 38. axb4 {[%clk 0:01:47.2]} 38... axb4 {[%clk 0:00:50.4]}
39. Qd2 {[%clk 0:01:47.8]} 39... b3 {[%clk 0:00:47.4]} 40. Bb1 {[%clk
0:01:46.3]} 40... Nxe4 {[%clk 0:00:41.1]} 41. Qd4 {[%clk 0:01:42.3]} 41... Nc5
{[%clk 0:00:22.1]} 42. Qxc4 {[%clk 0:01:42.2]} 42... Qb7 {[%clk 0:00:14.2]} 43.
Qg4 {[%clk 0:01:41.2]} 43... Qxd5 {[%clk 0:00:13]} 44. Qh5 {[%clk 0:01:40.9]}
44... Ne4 {[%clk 0:00:13.1]} 45. Re3 {[%clk 0:01:16.1]} 45... Qxe6 {[%clk
0:00:13.3]} 46. Kg1 {[%clk 0:01:10.8]} 46... d5 {[%clk 0:00:13.6]} 47. Rxb3
{[%clk 0:01:08.5]} 47... Rf7 {[%clk 0:00:12.6]} 48. Qd1 {[%clk 0:01:04.2]} 48...
Qc6 {[%clk 0:00:12.5]} 49. Qd4 {[%clk 0:01:03.7]} 49... Qc5 {[%clk 0:00:12.5]}
50. Qxc5 {[%clk 0:01:02.8]} 50... Nxc5 {[%clk 0:00:13.4]} 51. Rb5 {[%clk
0:01:02.1]} 51... Ne4 {[%clk 0:00:13.1]} 52. Bxe4 {[%clk 0:01:01.7]} 52... Rxe4
{[%clk 0:00:12.2]} 53. Rxd5 {[%clk 0:01:01.7]} 53... Rb4 {[%clk 0:00:12.9]} 54.
Rd2 {[%clk 0:01:01.7]} 54... Rfb7 {[%clk 0:00:13.3]} 55. Rb1 {[%clk 0:01:00.9]}
55... Rb3 {[%clk 0:00:13.5]} 56. Kf2 {[%clk 0:00:59.9]} 56... h5 {[%clk
0:00:13.6]} 57. Ke1 {[%clk 0:01:00.3]} 57... h4 {[%clk 0:00:14]} 58. Kd1 {[%clk
0:01:00.9]} 58... Kg6 {[%clk 0:00:14.4]} 59. Kc2 {[%clk 0:01:01.4]} 59... g4
{[%clk 0:00:12.9]} 60. Rd4 {[%clk 0:01:00.4]} 60... f5 {[%clk 0:00:13.1]} 61.
Rd3 {[%clk 0:00:59.9]} 61... Rxd3 {[%clk 0:00:07.5]} 62. Kxd3 {[%clk 0:01:00.8]}
62... Kg5 {[%clk 0:00:07]} 63. b4 {[%clk 0:01:00.5]} 63... h3 {[%clk 0:00:05.4]}
64. g3 {[%clk 0:00:58.1]} 64... f4 {[%clk 0:00:05.2]} 65. gxf4+ {[%clk
0:00:57.2]} 65... Kxf4 {[%clk 0:00:06.1]} 66. Rf1+ {[%clk 0:00:55.7]} 66... Kg5
{[%clk 0:00:06]} 67. Kc4 {[%clk 0:00:54.6]} 67... Rc7+ {[%clk 0:00:06.5]} 68.
Kd5 {[%clk 0:00:54.3]} 68... Rc2 {[%clk 0:00:07]} 69. Rh1 {[%clk 0:00:49.6]}
69... Rb2 {[%clk 0:00:07.5]} 70. Kc4 {[%clk 0:00:49.3]} 70... Kf4 {[%clk
0:00:08.1]} 71. Kc3 {[%clk 0:00:49.5]} 71... Re2 {[%clk 0:00:08.4]} 72. b5
{[%clk 0:00:49.8]} 72... Kf3 {[%clk 0:00:08.4]} 73. b6 {[%clk 0:00:34.2]} 73...
Kg2 {[%clk 0:00:08.4]} 74. Kd3 {[%clk 0:00:25.6]} 74... Rb2 {[%clk 0:00:06.7]}
75. Re1 {[%clk 0:00:20.3]} 75... Kxh2 {[%clk 0:00:06.3]} 76. Re2+ {[%clk
0:00:18.8]} 76... Rxe2 {[%clk 0:00:06.8]} 77. Kxe2 {[%clk 0:00:19.7]} 77... g3
{[%clk 0:00:06.2]} 78. b7 {[%clk 0:00:19.7]} 78... Kg2 {[%clk 0:00:05.3]} 79.
b8=Q {[%clk 0:00:19.9]} 79... h2 {[%clk 0:00:06]} 80. Qb7+ {[%clk 0:00:20.4]}
80... Kg1 {[%clk 0:00:06.5]} 81. Qb6+ {[%clk 0:00:20.6]} 81... Kg2 {[%clk
0:00:06.5]} 82. Qc6+ {[%clk 0:00:20.9]} 82... Kg1 {[%clk 0:00:07.4]} 83. Qc1+
{[%clk 0:00:21.5]} 83... Kg2 {[%clk 0:00:08.1]} 84. Qf1# {[%clk 0:00:22.2]} 1-0

[Event "Late-Titled-Tuesday-Blitz-May-07-2024"]
[Site "Chess.com"]
[Date "2024.05.07"]
[Round "9"]
[White "Karacsonyi_Gellert"]
[Black "maximnovik"]
[Result "1/2-1/2"]
[WhiteElo "2711"]
[BlackElo "2499"]
[TimeControl "180+1"]
[EndTime "15:48:46 PDT"]
[Termination "Game drawn - insufficient material"]

1. e4 {[%clk 0:03:00.9]} 1... e5 {[%clk 0:02:59.2]} 2. Nf3 {[%clk 0:03:01.2]}
2... Nc6 {[%clk 0:02:59.6]} 3. Bb5 {[%clk 0:03:01.6]} 3... a6 {[%clk 0:02:59.8]}
4. Bxc6 {[%clk 0:03:01.9]} 4... dxc6 {[%clk 0:02:59.7]} 5. O-O {[%clk
0:03:02.4]} 5... f6 {[%clk 0:02:59.8]} 6. d4 {[%clk 0:03:02.6]} 6... exd4 {[%clk
0:03:00]} 7. Nxd4 {[%clk 0:03:03.5]} 7... c5 {[%clk 0:02:56.8]} 8. Nb3 {[%clk
0:03:03.7]} 8... Qxd1 {[%clk 0:02:56]} 9. Rxd1 {[%clk 0:03:04.6]} 9... Bd7
{[%clk 0:02:56.1]} 10. Bf4 {[%clk 0:03:04.6]} 10... O-O-O {[%clk 0:02:55.5]} 11.
Nc3 {[%clk 0:03:05.3]} 11... c4 {[%clk 0:02:24.3]} 12. Na5 {[%clk 0:03:04]}
12... Bb4 {[%clk 0:02:16.1]} 13. Nxc4 {[%clk 0:03:02]} 13... Bxc3 {[%clk
0:02:15.9]} 14. bxc3 {[%clk 0:03:02.2]} 14... Ne7 {[%clk 0:02:13.8]} 15. f3
{[%clk 0:02:55.3]} 15... Be6 {[%clk 0:02:11.6]} 16. Ne3 {[%clk 0:02:49.5]} 16...
Rxd1+ {[%clk 0:01:53.5]} 17. Rxd1 {[%clk 0:02:49]} 17... Rd8 {[%clk 0:01:51.9]}
18. Rxd8+ {[%clk 0:02:47.7]} 18... Kxd8 {[%clk 0:01:52.2]} 19. a3 {[%clk
0:02:48.2]} 19... Kd7 {[%clk 0:01:48]} 20. Kf2 {[%clk 0:02:47.1]} 20... b5
{[%clk 0:01:43]} 21. g4 {[%clk 0:02:45.6]} 21... Nc6 {[%clk 0:01:42.4]} 22. h4
{[%clk 0:02:41.1]} 22... Na5 {[%clk 0:01:42.4]} 23. h5 {[%clk 0:02:40]} 23...
Nc4 {[%clk 0:01:36.9]} 24. Nxc4 {[%clk 0:02:40.1]} 24... Bxc4 {[%clk 0:01:36.6]}
25. Ke3 {[%clk 0:02:40.2]} 25... c5 {[%clk 0:01:31.6]} 26. Bg3 {[%clk
0:02:38.3]} 26... Be6 {[%clk 0:01:31.1]} 27. h6 {[%clk 0:02:29]} 27... gxh6
{[%clk 0:01:27.6]} 28. Bh4 {[%clk 0:02:29.3]} 28... h5 {[%clk 0:01:23.7]} 29.
gxh5 {[%clk 0:02:20.3]} 29... f5 {[%clk 0:01:23.8]} 30. e5 {[%clk 0:02:20.6]}
30... Kc6 {[%clk 0:01:23.9]} 31. Kf4 {[%clk 0:02:18.6]} 31... Kd5 {[%clk
0:01:24]} 32. Be7 {[%clk 0:02:19.3]} 32... a5 {[%clk 0:01:12.4]} 33. h6 {[%clk
0:02:16.7]} 33... Kc4 {[%clk 0:01:04.3]} 34. Kg5 {[%clk 0:02:16.2]} 34... Kxc3
{[%clk 0:00:57.6]} 35. Bxc5 {[%clk 0:02:14.7]} 35... Kc4 {[%clk 0:00:50]} 36.
Bd6 {[%clk 0:02:07.3]} 36... Kd5 {[%clk 0:00:45.3]} 37. Kf6 {[%clk 0:02:05.7]}
37... f4 {[%clk 0:00:45.4]} 38. Kg5 {[%clk 0:02:04.1]} 38... Bf7 {[%clk
0:00:45.3]} 39. Kxf4 {[%clk 0:02:02.5]} 39... Bg6 {[%clk 0:00:45.7]} 40. c3
{[%clk 0:02:01.4]} 40... Ke6 {[%clk 0:00:45.3]} 41. Bc7 {[%clk 0:02:01.3]} 41...
a4 {[%clk 0:00:45.4]} 42. Bd6 {[%clk 0:02:02]} 42... Kd5 {[%clk 0:00:44.8]} 43.
Ke3 {[%clk 0:01:57.8]} 43... Bf5 {[%clk 0:00:44.2]} 44. Bc7 {[%clk 0:01:45]}
44... Bg6 {[%clk 0:00:43.8]} 45. Kf4 {[%clk 0:01:45.6]} 45... Ke6 {[%clk
0:00:43.2]} 46. Bb8 {[%clk 0:01:42]} 46... Bf5 {[%clk 0:00:43.1]} 47. Ba7 {[%clk
0:01:28]} 47... Bg6 {[%clk 0:00:42.8]} 48. Bd4 {[%clk 0:01:28.5]} 48... Bf5
{[%clk 0:00:42.8]} 49. Ke3 {[%clk 0:01:15.1]} 49... Kd5 {[%clk 0:00:42.1]} 50.
Kf2 {[%clk 0:01:13.5]} 50... Ke6 {[%clk 0:00:39.9]} 51. Ke2 {[%clk 0:01:14.1]}
51... Kd5 {[%clk 0:00:40]} 52. Kd2 {[%clk 0:01:14.7]} 52... Kc4 {[%clk
0:00:35.3]} 53. Ba7 {[%clk 0:01:11.5]} 53... Kd5 {[%clk 0:00:33.6]} 54. Bb8
{[%clk 0:01:12.1]} 54... Kc4 {[%clk 0:00:33.6]} 55. Bd6 {[%clk 0:01:12.4]} 55...
Kd5 {[%clk 0:00:33.8]} 56. Ke3 {[%clk 0:01:13.1]} 56... Bg6 {[%clk 0:00:32.1]}
57. f4 {[%clk 0:01:10.7]} 57... Bf5 {[%clk 0:00:31.7]} 58. Bf8 {[%clk
0:01:10.6]} 58... Bg6 {[%clk 0:00:31.4]} 59. Kf3 {[%clk 0:01:08.9]} 59... Bf5
{[%clk 0:00:31.1]} 60. Bd6 {[%clk 0:01:07.3]} 60... Ke6 {[%clk 0:00:30.8]} 61.
c4 {[%clk 0:00:56.7]} 61... bxc4 {[%clk 0:00:28.4]} 62. Ke3 {[%clk 0:00:55.5]}
62... Kd5 {[%clk 0:00:28.8]} 63. Bb4 {[%clk 0:00:54.2]} 63... Bd7 {[%clk
0:00:26.3]} 64. Kd2 {[%clk 0:00:51.8]} 64... Ke4 {[%clk 0:00:24]} 65. Bd6 {[%clk
0:00:52.2]} 65... Kd4 {[%clk 0:00:21.4]} 66. Bb4 {[%clk 0:00:47.8]} 66... Ke4
{[%clk 0:00:21.5]} 67. Kc3 {[%clk 0:00:46]} 67... Kxf4 {[%clk 0:00:21.5]} 68.
Bd6 {[%clk 0:00:45.5]} 68... Be6 {[%clk 0:00:20.2]} 69. Kd4 {[%clk 0:00:44.9]}
69... Kf5 {[%clk 0:00:19.5]} 70. Bf8 {[%clk 0:00:42.8]} 70... Kf4 {[%clk
0:00:19]} 71. Bg7 {[%clk 0:00:43]} 71... Kf5 {[%clk 0:00:19.1]} 72. Kc3 {[%clk
0:00:43.9]} 72... Ke4 {[%clk 0:00:18.7]} 73. Kb4 {[%clk 0:00:44.8]} 73... Kd3
{[%clk 0:00:18.9]} 74. Kxa4 {[%clk 0:00:39.4]} 74... c3 {[%clk 0:00:19.8]} 75.
Bf6 {[%clk 0:00:39.9]} 75... c2 {[%clk 0:00:18.8]} 76. Bg5 {[%clk 0:00:40.3]}
76... Ke4 {[%clk 0:00:17.3]} 77. Kb5 {[%clk 0:00:35]} 77... Kxe5 {[%clk
0:00:17.1]} 78. a4 {[%clk 0:00:33.8]} 78... Kf5 {[%clk 0:00:14.5]} 79. Bc1
{[%clk 0:00:31.4]} 79... Ke4 {[%clk 0:00:14.6]} 80. a5 {[%clk 0:00:31.1]} 80...
Kd3 {[%clk 0:00:14.6]} 81. Kc6 {[%clk 0:00:28.5]} 81... Ke2 {[%clk 0:00:13.4]}
82. a6 {[%clk 0:00:27.7]} 82... Kd1 {[%clk 0:00:12]} 83. Bg5 {[%clk 0:00:28]}
83... c1=Q+ {[%clk 0:00:10.4]} 84. Bxc1 {[%clk 0:00:28.6]} 84... Kxc1 {[%clk
0:00:10.7]} 85. a7 {[%clk 0:00:26.4]} 85... Bg4 {[%clk 0:00:10.7]} 86. Kd5
{[%clk 0:00:20.8]} 86... Bf3+ {[%clk 0:00:11.5]} 87. Ke5 {[%clk 0:00:21.3]}
87... Kd2 {[%clk 0:00:11.7]} 88. Kf6 {[%clk 0:00:19.8]} 88... Ke3 {[%clk
0:00:11.9]} 89. Kg7 {[%clk 0:00:20.7]} 89... Be4 {[%clk 0:00:12.1]} 90. Kf6
{[%clk 0:00:21.1]} 90... Kf4 {[%clk 0:00:12]} 91. Kf7 {[%clk 0:00:16.5]} 91...
Kg5 {[%clk 0:00:12]} 92. Kg7 {[%clk 0:00:17.4]} 92... Kh5 {[%clk 0:00:11.4]} 93.
a8=Q {[%clk 0:00:16.9]} 93... Bxa8 {[%clk 0:00:11.2]} 94. Kxh7 {[%clk
0:00:17.8]} 94... Be4+ {[%clk 0:00:11.6]} 95. Kg7 {[%clk 0:00:18.7]} 95... Bg6
{[%clk 0:00:12]} 96. h7 {[%clk 0:00:19.6]} 96... Bxh7 {[%clk 0:00:12.3]} 1/2-1/2